Cogmind - Beta 10.2 @@@ ROGUE MODE // 2021.04.02 @ 09:38:58 // AFD2021/Volatile Player: Perseus Result: Destroyed by D-53 Grenadier with Mini Grenade Launcher Performance ------------- Evolutions (0) 0 Regions Visited (4) 800 Robots Destroyed (30) 150 Value Destroyed (756) 756 Prototype IDs (26) 520 Alien Tech Used (0) 0 Bonus (353) 353 TOTAL SCORE: 2579 Bonus ------- High Alert Combat Kills 11 Follower Combat Kills 60 Aligned with FarCom 300 Friendly Fire -18 Cogmind --------- Core Integrity 0/250 Matter 262/300 Energy 70/100 System Corruption 2% Temperature Cool (0) Movement Walking (120) Location -9/Mines Parts ------- > --- POWER (1) -------- (None) > --- PROPULSION (2) --- Aluminum Leg > --- UTILITY (2) ------ Bomb Drone Bay (16/16) > --- WEAPON (2) ------- (None) > --- INVENTORY (4) ---- Medium Storage Unit Lightpack 2.0 Peak State ------------ > --- POWER ------------ Ion Engine > --- PROPULSION ------- Aluminum Leg Aluminum Leg > --- UTILITY ---------- Bomb Drone Bay > --- WEAPON ----------- Assault Rifle Assault Rifle > --- INVENTORY -------- Light Ion Engine Light Nuclear Core Aluminum Leg Improved Heat Sink [Rating: 19] Favorites ----------- Power Light Ion Engine Engine Light Ion Engine Power Core Light Nuclear Core Propulsion Aluminum Leg Leg Aluminum Leg Utility Small Storage Unit Device Improved Heat Sink Storage Small Storage Unit Weapon Assault Rifle Energy Gun EM Pulse Gun Ballistic Gun Assault Rifle Build | -11 -10 -10 -10 -9 ------- Run | Scr Mat Min Exi Min Slots Evolved . | . . . . . Power . | . . . . . Propulsion . | . . . . . Utility . | . . . . . Weapon . | . . . . . Parts Attached 21 | . 4 10 2 5 Power 2 | . . 1 . 1 Engine 1 | . . 1 . . Core 1 | . . . . 1 Reactor . | . . . . . Propulsion 7 | . 1 4 . 2 Treads . | . . . . . Leg 7 | . 1 4 . 2 Wheel . | . . . . . Hover . | . . . . . Flight . | . . . . . Utility 10 | . 3 4 2 1 Device 4 | . 2 1 . 1 Storage 6 | . 1 3 2 . Processor . | . . . . . Hackware . | . . . . . Protection . | . . . . . Artifact . | . . . . . Weapon 2 | . . 1 . 1 Energy Gun 1 | . . . . 1 Energy Cannon . | . . . . . Ballistic Gun 1 | . . 1 . . Ballistic Cannon . | . . . . . Launcher . | . . . . . Special Weapon . | . . . . . Impact Weapon . | . . . . . Slashing Weapon . | . . . . . Piercing Weapon . | . . . . . Special Melee Weapon . | . . . . . Unidentified Prototypes 1 | . . 1 . . Parts Lost 8 | . . 1 . 7 Power 2 | . . . . 2 Propulsion 2 | . . . . 2 Utility . | . . . . . Weapon 4 | . . 1 . 3 Highest Loss Streak 7 | . . 1 . 7 Average Slot Usage (%) 99 | . 90 99 100 99 Engine 13 | . 14 14 14 13 Leg 28 | . 28 28 28 28 Device 1 | . 4 1 . . Storage 26 | . 14 26 28 28 Energy Gun 1 | . 14 1 . . Ballistic Gun 26 | . 14 26 28 27 Naked Turns . | . . . . . Heaviest Build 23 | 13 17 17 23 23 Greatest Support 20 | 20 20 20 20 20 Greatest Overweight (x) 1 | . . . 1 1 Average Overweight (x) . | . . . . 1 Largest Inventory Capacity 12 | 6 8 8 12 12 Average Capacity 9 | 6 6 7 10 11 Most Carried 12 | 6 6 8 12 12 Average Carried 9 | 5 5 7 10 11 Final Capacity 12 | 6 6 8 12 4 Final Carried 12 | 6 6 8 12 3 Class Distribution -------------------- 100% | Mutant Dominant Class ---------------- Mutant | -10/Materials Mutant | -10/Mines Mutant | -10/Exiles Mutant | -9/Mines Resources | -11 -10 -10 -10 -9 ----------- Run | Scr Mat Min Exi Min Matter Collected 582 | 215 38 242 51 36 Remotely . | . . . . . Salvage Created 957 | 178 394 385 . . Parts 62 | 14 26 22 . . Haulers Intercepted . | . . . . . Recyclers Shooed 1 | 1 . . . . Parts Field Recycled . | . . . . . Retrieved Matter . | . . . . . Parts Self-Destructed . | . . . . . Prevented . | . . . . . Kills | -11 -10 -10 -10 -9 ------- Run | Scr Mat Min Exi Min Combat Hostiles Destroyed 20 | . 10 10 . . Guns 13 | . 5 8 . . AOE 7 | . 5 2 . . Classes Destroyed 6 | 2 3 1 . . Worker 1 | . . 1 . . Tunneler 7 | 5 1 1 . . Recycler 1 | 1 . . . . Watcher 1 | . 1 . . . Swarmer 6 | . 3 3 . . Grunt 14 | . 7 7 . . Best Kill Streak 9 | 4 9 3 . . Combat Bots Only 7 | . 7 2 . . Max Kills in Single Turn 5 | 4 5 3 . . Gunslinging . | . . . . . Exploded 3 | . 3 1 . . Melee . | . . . . . Uniques/NPCs Destroyed . | . . . . . Combat | -11 -10 -10 -10 -9 -------- Run | Scr Mat Min Exi Min Damage Taken 1082 | 21 140 268 . 653 Core 253 | . 15 63 . 175 Absorbed by Shields . | . . . . . Core Remaining (%) 100 | 100 . . . . Volleys Fired 54 | 5 13 29 . 7 Largest 2 | 2 2 2 . 2 Hottest 85 | 60 60 60 . 85 Shots Fired 105 | 10 26 56 . 13 Gun 105 | 10 26 56 . 13 Cannon . | . . . . . Launcher . | . . . . . Special . | . . . . . Kinetic 78 | 5 13 49 . 11 Thermal 2 | . . . . 2 Explosive . | . . . . . Electromagnetic 25 | 5 13 7 . . Robot Hit Streak 6 | 5 6 6 . 3 Robot Miss Streak 6 | 1 2 6 . 3 Penetration Max . | . . . . . Secondary Targets 3 | . 2 1 . . Max Gunslinging Chain 1 | . 1 1 . . Shots Hit Robots 60 | 7 17 30 . 6 Core Hits 48 | 6 19 21 . 2 Critical Hits . | . . . . . Critical Kills . | . . . . . Critical Parts Destroyed . | . . . . . Melee Attacks . | . . . . . Impact . | . . . . . Slashing . | . . . . . Piercing . | . . . . . Sneak Attacks . | . . . . . Combat Hostiles . | . . . . . Follow-up Attacks . | . . . . . Damage Inflicted 1759 | 270 840 570 . 79 Guns 756 | 108 216 353 . 79 Cannons . | . . . . . Explosions 1003 | 162 624 217 . . Melee . | . . . . . Ramming . | . . . . . Kinetic 509 | 65 70 310 . 64 Thermal 668 | . 469 184 . 15 Explosive 254 | 162 59 33 . . Electromagnetic 328 | 43 242 43 . . Impact . | . . . . . Slashing . | . . . . . Piercing . | . . . . . Highest Corruption 2 | 1 1 2 2 2 Average Corruption 1 | 1 1 1 2 2 Corruption Purged . | . . . . . Effects 12 | . . 7 3 2 Message Errors 4 | . . 4 . . Heat Flow Errors 3 | . . 1 1 1 Energy Discharges 2 | . . 1 1 . Data Loss (minor) 2 | . . . 1 1 Weapon Failures 1 | . . 1 . . Overload Shots . | . . . . . Overflow Damage 81 | . 81 . . . Projectiles . | . . . . . Explosions 81 | . 81 . . . Melee . | . . . . . Knockbacks . | . . . . . Impact . | . . . . . Kinetic . | . . . . . Secondary . | . . . . . Self-Inflicted Damage 96 | 21 . 75 . . Shots 5 | 1 . 4 . . Rammed . | . . . . . Targets Rammed . | . . . . . Kicked . | . . . . . Crushed . | . . . . . Highest Temperature 160 | . 69 141 97 160 Average Temperature 42 | . 26 57 51 54 Received Heat Transfer 147 | . 78 69 . . Siege Activations . | . . . . . Robots Corrupted . | . . . . . Combat Hostiles . | . . . . . Parts Fried . | . . . . . Impact Corruptions . | . . . . . Robots Melted . | . . . . . Combat Hostiles . | . . . . . Parts Melted 1 | . 1 . . . Heat Transferred 797 | . 560 200 . 37 Parts Sabotaged . | . . . . . Parts Stolen . | . . . . . Parts Stripped . | . . . . . Power Chain Reactions . | . . . . . Missiles Intercepted . | . . . . . Alert | -11 -10 -10 -10 -9 ------- Run | Scr Mat Min Exi Min Peak Influence . | . . . . . Initial 148 | . 19 148 . . Average . | . . . . . Maximum Alert Level 2 | . 1 2 . . Low Security (%) 49 | 100 25 24 . 100 Level 1 45 | . 74 65 . . Level 2 5 | . . 9 . . Level 3 . | . . . . . Level 4 . | . . . . . Level 5 . | . . . . . High Security . | . . . . . Max Security . | . . . . . Squads Dispatched 2 | . 1 1 . . Investigation 2 | . 1 1 . . Extermination . | . . . . . Reinforcement . | . . . . . Assault . | . . . . . Garrison . | . . . . . Intercept . | . . . . . Construction Impeded . | . . . . . Haulers Reinforced . | . . . . . Stealth | -11 -10 -10 -10 -9 --------- Run | Scr Mat Min Exi Min Distress Signals . | . . . . . Communications Jammed . | . . . . . Distress Signals . | . . . . . Times Spotted 26 | . 10 14 . 2 Peak Tracking Total 8 | . 8 3 . 2 Tactical Retreats 2 | . . 2 . . Traps | -11 -10 -10 -10 -9 ------- Run | Scr Mat Min Exi Min Traps Triggered . | . . . . . Indirectly . | . . . . . Trap Hack Attempts . | . . . . . Triggered . | . . . . . Disarmed . | . . . . . Reprogrammed . | . . . . . Reused . | . . . . . Traps Extracted . | . . . . . Installed . | . . . . . Triggered . | . . . . . Machines | -11 -10 -10 -10 -9 ---------- Run | Scr Mat Min Exi Min Machines Disabled 7 | . 5 2 . . Max in Single Turn 2 | . 2 2 . . Machines Sabotaged . | . . . . . Garrisons Compromised . | . . . . . Overloaded Fab Kills . | . . . . . Fab Network Shutdowns . | . . . . . Hacking | -11 -10 -10 -10 -9 --------- Run | Scr Mat Min Exi Min Machines Accessed 7 | . 3 2 1 1 Terminals 3 | . 2 . . 1 Fabricators . | . . . . . Repair Stations . | . . . . . Recycling Units 1 | . 1 . . . Scanalyzers . | . . . . . Garrison Access . | . . . . . Total Hacks 12 | . 7 2 1 2 Successful 7 | . 3 2 1 1 Failed 5 | . 4 . . 1 Catastrophic . | . . . . . Database Lockouts . | . . . . . Manual 7 | . 4 . 1 2 Terminals 7 | . 5 . . 2 Fabricators . | . . . . . Repair Stations . | . . . . . Recycling Units 2 | . 2 . . . Scanalyzers . | . . . . . Garrison Access . | . . . . . Terminal Hacks 6 | . 2 2 1 1 Robot Analysis 1 | . . . . 1 Prototype ID Bank 1 | . 1 . . . Open Door 2 | . . 2 . . Branch Access Points 1 | . 1 . . . EX-Prototype ID Bank 1 | . . . 1 . Fabricator Hacks . | . . . . . Repair Station Hacks . | . . . . . Recycling Unit Hacks . | . . . . . Scanalyzer . | . . . . . Garrison Access Hacks . | . . . . . Unauthorized Hacks 1 | . 1 . . . Terminals . | . . . . . Fabricators . | . . . . . Repair Stations . | . . . . . Recycling Units 1 | . 1 . . . Tunnel 1 | . 1 . . . Scanalyzers . | . . . . . Garrison Access . | . . . . . Data Cores Recovered . | . . . . . Used . | . . . . . Hacking Detections 3 | . 2 . . 1 Full Trace Events . | . . . . . Feedback Events . | . . . . . Feedback Blocked . | . . . . . Robot Schematics Acquired . | . . . . . Robots Built . | . . . . . Matter . | . . . . . Time . | . . . . . Total Robot Build Rating . | . . . . . Part Schematics Acquired . | . . . . . Parts Built . | . . . . . Matter . | . . . . . Time . | . . . . . Total Part Build Rating . | . . . . . Parts Repaired . | . . . . . Time . | . . . . . Parts Recycled . | . . . . . Recycled Matter . | . . . . . Retrieved Matter . | . . . . . Retrieved Components . | . . . . . Parts Scanalyzed . | . . . . . Part Schematics Acquired . | . . . . . Parts Damaged . | . . . . . Bothacking | -11 -10 -10 -10 -9 ------------ Run | Scr Mat Min Exi Min Used RIF Installer . | . . . . . Robots Hacked . | . . . . . Non-combat . | . . . . . Combat . | . . . . . Robot Hacks Applied . | . . . . . Relay Couplers Released . | . . . . . Robots Rewired . | . . . . . Allies Hacked . | . . . . . Hacks Repelled . | . . . . . Allies | -11 -10 -10 -10 -9 -------- Run | Scr Mat Min Exi Min Total Allies 3 | . . 3 . . Largest Group 3 | . . 3 3 3 Highest-Rated Group 40 | . . 40 40 40 Highest-Rated Ally 16 | . . 16 16 16 Total Orders 3 | . . 3 . . EXPLORE 1 | . . 1 . . RETURN 2 | . . 2 . . Ally Attacks 8 | . . . . 8 Total Damage 233 | . . . . 233 Kills 4 | . . . . 4 Allies Corrupted . | . . . . . Allies Melted . | . . . . . Intel | -11 -10 -10 -10 -9 ------- Run | Scr Mat Min Exi Min Robot Analysis Total 1 | . . . . 1 Derelict Logs Recovered 2 | . . 2 . . Drone Launches 3 | . . 3 . . Drone Recoveries 3 | . . 3 . . Exploration | -11 -10 -10 -10 -9 ------------- Run | Scr Mat Min Exi Min Turns Passed 2167 | 64 170 966 488 479 Spaces Moved 1446 | 23 102 677 347 297 Core . | . . . . . Treads . | . . . . . Legs 1446 | 23 102 677 347 297 Wheels . | . . . . . Hover . | . . . . . Flight . | . . . . . Fastest Speed 120 | 120 120 120 120 150 Average Speed 130 | 120 120 120 137 150 Slowest Speed 150 | 120 120 120 150 150 Overloaded Moves . | . . . . . Propulsion Burnouts . | . . . . . Robots Hopped . | . . . . . Cave-ins Triggered . | . . . . . Exploration Rate (%) 53 | 4 36 99 70 59 Regions Visited 4 Branch Regions 3 Pre-discovered Areas 2 | . 1 1 . . Known Exits Taken 1 | . 1 . . . Unknown Exits Taken 3 | 1 . 1 1 . Scrap Searched 2 | . . 2 . . Spaces Dug . | . . . . . Terrain Destroyed 161 | 35 29 97 . . Melee . | . . . . . Projectile . | . . . . . AOE 161 | 35 29 97 . . Terrain Rammed . | . . . . . Walls Destroyed . | . . . . . Machines Disabled . | . . . . . Actions | -11 -10 -10 -10 -9 --------- Run | Scr Mat Min Exi Min Total 1625 | 50 123 775 358 319 Wait 68 | 19 . 44 . 5 Move 1442 | 22 101 676 346 297 Hop . | . . . . . Pick Up 20 | 2 2 8 6 2 Fast Attach 3 | . 1 2 . . Attach 6 | . . 2 . 4 Detach . | . . . . . Swap 12 | . 3 6 2 1 Drop 20 | 2 3 8 4 3 Fire 54 | 5 13 29 . 7 Melee . | . . . . . Ram . | . . . . . Kick . | . . . . . Crush . | . . . . . Escape Stasis . | . . . . . Rewire . | . . . . . Trap . | . . . . . Miscellaneous . | . . . . . Route ------- -11/Scrapyard -10/Materials (discovered 2 exits: [*Mat] / *Min) -10/Mines (discovered 3 exits: [*Mat x2] / *Exi) -10/Exiles -9/Mines (discovered 2 exits: [*Mat x2]) History --------- Turn | Location | Event 1 | -11/Scrapyard | Discovered new exit (range 2) 65 | -11/Scrapyard | Entered Materials 77 | -10/Materials | Identified exit to Mines 127 | -10/Materials | Discovered new exit (range 16) 142 | -10/Materials | Destroyed 7 combat bots 235 | -10/Materials | Entered Mines 275 | -10/Mines | Discovered new exit (range 9) 317 | -10/Mines | Build established: Mutant 588 | -10/Mines | Received a Rocket Launcher from a helpful Derelict 652 | -10/Mines | Found the Drone Emporium 664 | -10/Mines | Found Prototype Device 664 | -10/Mines | Identified Bomb Drone Bay 723 | -10/Mines | Discovered new exit (range 12) 736 | -10/Mines | Met a Derelict shopkeep closing up shop 798 | -10/Mines | Learned Materials terminal intel 1043 | -10/Mines | Assisted by bots powering up and referring to "LRC-V3" 1191 | -10/Mines | Deemed a non-threat by the Exiles lab entrance 1191 | -10/Mines | Discovered new exit (range 5) 1201 | -10/Mines | Entered Exiles 1201 | -10/Exiles | Accompanied by 3 allies 1234 | -10/Exiles | Met 8R-AWN 1249 | -10/Exiles | Met EX-HEX 1324 | -10/Exiles | Met EX-DEC 1479 | -10/Exiles | Met EX-BIN 1500 | -10/Exiles | Aligned with FarCom system 1502 | -10/Exiles | Given EX-Vault access code 1538 | -10/Exiles | Opened EX-Vault 1550 | -10/Exiles | Found Lightpack 2.0 1583 | -10/Exiles | Warned to stay clear of 0b10 Research branches 1677 | -10/Exiles | Discovered new exit (range 10) 1689 | -10/Exiles | Left Exiles lab with Lightpack 2.0 1689 | -10/Exiles | Entered Mines 1689 | -9/Mines | Accompanied by 3 allies 1746 | -9/Mines | Found a damaged Exp. Sensor Array with a note attached 1751 | -9/Mines | Found Prototype Device 1901 | -9/Mines | Found a hidden stash of uninstalled traps 1916 | -9/Mines | Discovered new exit (range 4) 2017 | -9/Mines | Discovered new exit (range 3) 2091 | -9/Mines | Assembled infested the area 2155 | -9/Mines | Core integrity fell below 50% 2164 | -9/Mines | Core integrity fell below 20% 2168 | -9/Mines | Destroyed by D-53 Grenadier with Mini Grenade Launcher Last Messages --------------- 02154_ Assault Rifle destroyed. 02155_ The unstable cave ceiling collapses. 02158_ Lgt. Ion Engine destroyed. 02158_ K-01 Serf destroyed. 02161_ The unstable cave ceiling collapses. 02161_ K-01 Serf collects debris. 02162_ Particle Gun destroyed. 02162_ Aluminum Leg destroyed. 02163_ The unstable cave ceiling collapses. 02163_ Aluminum Leg destroyed. 02164_ The unstable cave ceiling collapses. 02165_ K-01 Serf collects debris. 02165_ Assault Rifle destroyed. 02166_ Lgt. Nuclear Core destroyed. 02166_ Dropped Med. Storage Unit. 02167_ K-01 Serf collects debris. 02168_ The unstable cave ceiling collapses. 02168_ Hcp. Matter Pod crushed. 02168_ The unstable cave ceiling collapses. 02168_ Acquired Med. Storage Unit. Map ----- +----------------------------------------------------+ | ????????????????????????????????# #?????????????? | | ????????????????????????????????# #?????????????? | | ?????????????????????????????#### #?????????????? | | ?????????????????????????????# #?????????????? | | ?????????????????????????????# #?????????????? | | ?????????????????????????????# ####?????????????? | | ?????????????????????????????# #????????????????? | | ?????????????????????????????# #????????????????? | | ????????????????????????????## ##???????????????? | | ????????????????????????????# #####???????????? | | ????????????????????????????# ##??????????? | | ????????????????????????????# ##?????????? | | ????????????????????????????# #?????????? | | ???????????????????????????## #?????????? | | ???????????????????????????#" ##????????? | | ???????????????????????????# #????????? | | ???????????????????????????# #????????? | | ???????????????????###?????# #??????#?? | | ??????????????????## ##???# #k ##### #?? | | ??????????????????# #??# % < #?? | | ???????????? ????# ### # #?? | | ??????????? ### ########?? | | ??????????? ###????????? | | ???????????? # #?????????? | | ????????????????# * ##????????? | | ????????????????# !@ d #????????? | | ?????????????????# ! d #???????? | | ?????????????????### ##### #???????? | | ???????????????????## ####??## #???????? | | ????????????????????# ###??????? #??????? | | ????????????????????## ##?????????# ##??????? | | ?????????????????????#######???????????###???????? | | ?????????????????????????????????????????????????? | | ?????????????????????????????????????????????????? | | | | | | | | | | | | | | | | | | | | | | | | | | | | | | | | | +----------------------------------------------------+ Best States ------------- Heat Dissipation 39 Energy Generation 10 Energy Capacity 250 Matter Stores 300 Matter Capacity 300 Sight Range 16 Terrain Scan Density 10 Evasion (%) 40 Item Schematics ----------------- None Robot Schematics ------------------ None Fabricated ------------ Nothing Alien Tech Used ----------------- None Achievements -------------- None Challenges ------------ None Game ------ Seed ZioniteLargeGenerator Manual? 0 Play Time 00:16:31 Cumulative 303.2 hours Start 2021.04.02 @ 09:22:17 End 2021.04.02 @ 09:38:58 Sessions 1 Manual Loads 0 Difficulty Rogue Special Mode AFD2021/Volatile Game No. 92 Rogue 69 Adventurer 23 Explorer 0 Win Type - Total 11 Types 8/0/2/1/0/0/0/0/0 Lore% 89 Gallery% 91 Achievement% 71 Wizard Run 0 Options --------- ASCII 0 Keyboard 0 Movement Mouse Keybinds 0 Fullscreen 1 Font 18/SmallcapsGlow Map View 76x50 Tactical HUD 1 Map Filters NONE Filters NONE Steam 1 RUN: d6cffe67-0bec-4620-8758-f390952d3153